Cogmind - Beta 11 X7 @@@ ROGUE MODE // 2021.10.05 @ 14:52:39 Player: Minty Result: Self-destructed Performance ------------- Evolutions (1) 500 Regions Visited (2) 400 Robots Destroyed (21) 105 Value Destroyed (520) 520 Prototype IDs (0) 0 Alien Tech Used (0) 0 Bonus (0) 0 TOTAL SCORE: 1525 Bonus ------- None Cogmind --------- Core Integrity 245/400 Matter 145/300 Energy 125/125 System Corruption 0% Temperature Cool (36) Movement Walking (280) Ox2 Location -9/Materials Parts ------- > --- POWER (1) -------- Light Ion Engine > --- PROPULSION (4) --- Aluminum Leg Aluminum Leg Aluminum Leg Aluminum Leg > --- UTILITY (2) ------ High-capacity Storage Unit High-capacity Storage Unit > --- WEAPON (2) ------- Small Laser Heavy Assault Rifle > --- INVENTORY (20) --- Light Treads Light Treads Wheel Compact Wheel Small Storage Unit Assault Rifle Light Assault Rifle Light Assault Rifle Peak State ------------ > --- POWER ------------ Light Ion Engine > --- PROPULSION ------- Aluminum Leg Aluminum Leg Aluminum Leg Aluminum Leg > --- UTILITY ---------- High-capacity Storage Unit High-capacity Storage Unit > --- WEAPON ----------- Small Laser Heavy Assault Rifle > --- INVENTORY -------- Light Treads Wheel Compact Wheel Small Storage Unit Assault Rifle Light Assault Rifle Light Assault Rifle [Rating: 10] Favorites ----------- Power Ion Engine Engine Ion Engine Propulsion Aluminum Leg Treads Light Treads Leg Aluminum Leg Utility High-capacity Storage Unit Storage High-capacity Storage Unit Weapon Small Laser Energy Gun Small Laser Ballistic Gun Heavy Assault Rifle Launcher Grenade Launcher Build | -11 -10 -9 ------- Run | Scr Mat Mat Slots Evolved 2 | . . 2 Power . | . . . Propulsion 2 | . . 2 Utility . | . . . Weapon . | . . . Parts Attached 15 | . 8 7 Power 1 | . . 1 Engine 1 | . . 1 Core . | . . . Reactor . | . . . Propulsion 6 | . 2 4 Treads 2 | . 2 . Leg 4 | . . 4 Wheel . | . . . Hover . | . . . Flight . | . . . Utility 2 | . 2 . Device . | . . . Storage 2 | . 2 . Processor . | . . . Hackware . | . . . Protection . | . . . Artifact . | . . . Weapon 6 | . 4 2 Energy Gun 3 | . 2 1 Energy Cannon . | . . . Ballistic Gun 2 | . 1 1 Ballistic Cannon . | . . . Launcher 1 | . 1 . Special Weapon . | . . . Impact Weapon . | . . . Slashing Weapon . | . . . Piercing Weapon . | . . . Special Melee Weapon . | . . . Unidentified Prototypes . | . . . Parts Lost 5 | . 1 4 Power 1 | . . 1 Propulsion 1 | . . 1 Utility . | . . . Weapon 3 | . 1 2 Highest Loss Streak 2 | . 1 2 Average Slot Usage (%) 92 | . 98 85 Engine 12 | . 14 10 Treads 9 | . 10 7 Leg 21 | . 17 25 Storage 24 | . 27 22 Energy Gun 13 | . 15 11 Ballistic Gun 6 | . 5 6 Launcher 4 | . 7 . Naked Turns . | . . . Heaviest Build 89 | 13 89 87 Greatest Support 40 | 20 40 40 Greatest Overweight (x) 4 | . 2 4 Average Overweight (x) 1 | . 1 2 Largest Inventory Capacity 20 | 8 20 20 Average Capacity 19 | 8 19 20 Most Carried 16 | 6 16 11 Average Carried 10 | 6 12 8 Final Capacity 20 | 8 20 20 Final Carried 11 | 6 11 8 Class Distribution -------------------- 100% | Mutant Dominant Class ---------------- Mutant | -10/Materials Mutant | -9/Materials Resources | -11 -10 -9 ----------- Run | Scr Mat Mat Matter Collected 314 | 188 58 68 Remotely . | . . . Salvage Created 442 | . 204 238 Parts 32 | . 17 15 Haulers Intercepted 1 | . 1 . Recyclers Shooed . | . . . Parts Field Recycled . | . . . Retrieved Matter . | . . . Parts Self-Destructed . | . . . Prevented . | . . . Kills | -11 -10 -9 ------- Run | Scr Mat Mat Combat Hostiles Destroyed 15 | . 8 7 Guns 10 | . 3 7 AOE 5 | . 5 . Classes Destroyed 6 | . 6 . Worker 2 | . 2 . Builder 1 | . 1 . Hauler 1 | . 1 . Watcher 2 | . 1 1 Swarmer 6 | . 3 3 Grunt 9 | . 5 4 Best Kill Streak 6 | . 6 3 Combat Bots Only 3 | . 3 3 Max Kills in Single Turn 2 | . 2 1 Gunslinging . | . . . Exploded 2 | . 2 . Melee . | . . . Uniques/NPCs Destroyed . | . . . Combat | -11 -10 -9 -------- Run | Scr Mat Mat Damage Taken 1079 | . 513 566 Core 191 | . 36 155 Absorbed by Shields . | . . . Core Remaining (%) 92 | 100 85 . Volleys Fired 64 | . 20 44 Largest 2 | . 2 2 Hottest 80 | . 70 80 Shots Fired 89 | . 29 60 Gun 80 | . 20 60 Cannon . | . . . Launcher 9 | . 9 . Special . | . . . Kinetic 18 | . 8 10 Thermal 62 | . 12 50 Explosive 9 | . 9 . Electromagnetic . | . . . Robot Hit Streak 6 | . 3 6 Robot Miss Streak 5 | . 4 5 Penetration Max . | . . . Secondary Targets . | . . . Shots Hit Robots 52 | . 15 37 Core Hits 33 | . 21 12 Critical Kills . | . . . Critical Parts Destroyed . | . . . Critical Strikes . | . . . Melee Attacks . | . . . Impact . | . . . Slashing . | . . . Piercing . | . . . Sneak Attacks . | . . . Combat Hostiles . | . . . Follow-up Attacks . | . . . Damage Inflicted 1414 | . 933 481 Guns 575 | . 94 481 Cannons . | . . . Explosions 839 | . 839 . Melee . | . . . Ramming . | . . . Kinetic 148 | . 37 111 Thermal 427 | . 57 370 Explosive 839 | . 839 . Electromagnetic . | . . . Impact . | . . . Slashing . | . . . Piercing . | . . . Highest Corruption . | . . . Average Corruption . | . . . Corruption Purged . | . . . Overload Shots . | . . . Overflow Damage 11 | . 11 . Projectiles . | . . . Explosions 11 | . 11 . Melee . | . . . Knockbacks . | . . . Impact . | . . . Kinetic . | . . . Secondary . | . . . Self-Inflicted Damage 263 | . 263 . Shots 6 | . 6 . Rammed . | . . . Targets Rammed . | . . . Kicked . | . . . Crushed . | . . . Highest Temperature 96 | . 96 76 Average Temperature 34 | . 39 31 Received Heat Transfer 348 | . 108 240 Siege Activations . | . . . Robots Corrupted . | . . . Combat Hostiles . | . . . Parts Fried . | . . . Impact Corruptions . | . . . Robots Melted . | . . . Combat Hostiles . | . . . Parts Melted 2 | . . 2 Heat Transferred 950 | . 125 825 Parts Sabotaged . | . . . Parts Stolen . | . . . Parts Stripped . | . . . Power Chain Reactions . | . . . Missiles Intercepted . | . . . Alert | -11 -10 -9 ------- Run | Scr Mat Mat Peak Influence 226 | . 165 226 Initial 69 | . . 69 Average 108 | . 71 156 Maximum Alert Level 1 | . . 1 Low Security (%) 78 | 100 100 51 Level 1 21 | . . 48 Level 2 . | . . . Level 3 . | . . . Level 4 . | . . . Level 5 . | . . . High Security . | . . . Max Security . | . . . Squads Dispatched 3 | . 1 2 Investigation 2 | . 1 1 Extermination . | . . . Reinforcement 1 | . . 1 Assault . | . . . Garrison . | . . . Intercept . | . . . Construction Impeded . | . . . Haulers Reinforced . | . . . Active Scanning Responses . | . . . Cargo Convoy Interrupts . | . . . Stealth | -11 -10 -9 --------- Run | Scr Mat Mat Distress Signals 2 | . 1 1 Communications Jammed . | . . . Distress Signals . | . . . Times Spotted 20 | . 8 12 Peak Tracking Total 3 | . 3 2 Tactical Retreats . | . . . Traps | -11 -10 -9 ------- Run | Scr Mat Mat Traps Triggered . | . . . Indirectly . | . . . Trap Hack Attempts . | . . . Triggered . | . . . Disarmed . | . . . Reprogrammed . | . . . Reused . | . . . Traps Extracted . | . . . Installed . | . . . Triggered . | . . . Machines | -11 -10 -9 ---------- Run | Scr Mat Mat Machines Disabled 4 | . 4 . Max in Single Turn 1 | . 1 . Machines Sabotaged 1 | . 1 . Garrisons Compromised . | . . . Overloaded Fab Kills . | . . . Fab Network Shutdowns . | . . . Hacking | -11 -10 -9 --------- Run | Scr Mat Mat Machines Accessed 3 | . 2 1 Terminals 2 | . 2 . Fabricators . | . . . Repair Stations . | . . . Recycling Units . | . . . Scanalyzers 1 | . . 1 Garrison Access . | . . . Total Hacks 7 | . 5 2 Successful 5 | . 4 1 Failed 2 | . 1 1 Catastrophic . | . . . Database Lockouts . | . . . Manual 5 | . 3 2 Terminals 5 | . 5 . Fabricators . | . . . Repair Stations . | . . . Recycling Units . | . . . Scanalyzers 2 | . . 2 Garrison Access . | . . . Terminal Hacks 1 | . 1 . Alert Level 1 | . 1 . Fabricator Hacks . | . . . Repair Station Hacks . | . . . Recycling Unit Hacks . | . . . Scanalyzer . | . . . Garrison Access Hacks . | . . . Unauthorized Hacks 4 | . 3 1 Terminals 3 | . 3 . Botnet 2 | . 2 . Sabotage 1 | . 1 . Fabricators . | . . . Repair Stations . | . . . Recycling Units . | . . . Scanalyzers 1 | . . 1 Extract 1 | . . 1 Garrison Access . | . . . Data Cores Recovered . | . . . Used . | . . . Hacking Detections 2 | . 2 . Full Trace Events 1 | . 1 . Feedback Events . | . . . Feedback Blocked . | . . . Robot Schematics Acquired . | . . . Robots Built . | . . . Matter . | . . . Time . | . . . Total Robot Build Rating . | . . . Part Schematics Acquired 7 | . . 7 Parts Built . | . . . Matter . | . . . Time . | . . . Total Part Build Rating . | . . . Parts Repaired . | . . . Time . | . . . Parts Recycled . | . . . Recycled Matter . | . . . Retrieved Matter . | . . . Retrieved Components . | . . . Parts Scanalyzed . | . . . Part Schematics Acquired . | . . . Parts Damaged . | . . . Bothacking | -11 -10 -9 ------------ Run | Scr Mat Mat Used RIF Installer . | . . . Robots Hacked . | . . . Non-combat . | . . . Combat . | . . . Robot Hacks Applied . | . . . Relay Couplers Released . | . . . Robots Rewired . | . . . Allies Hacked . | . . . Hacks Repelled . | . . . Allies | -11 -10 -9 -------- Run | Scr Mat Mat Total Allies . | . . . Largest Group . | . . . Highest-Rated Group . | . . . Highest-Rated Ally . | . . . Total Orders . | . . . Ally Attacks . | . . . Total Damage . | . . . Kills . | . . . Allies Corrupted . | . . . Allies Melted . | . . . Intel | -11 -10 -9 ------- Run | Scr Mat Mat Robot Analysis Total . | . . . Derelict Logs Recovered . | . . . Drone Launches . | . . . Drone Recoveries . | . . . Exploration | -11 -10 -9 ------------- Run | Scr Mat Mat Turns Passed 1147 | 6 639 502 Spaces Moved 326 | 6 194 126 Core . | . . . Treads 91 | . 62 29 Legs 235 | 6 132 97 Wheels . | . . . Hover . | . . . Flight . | . . . Fastest Speed 120 | 120 120 280 Average Speed 295 | 120 292 307 Slowest Speed 560 | 120 360 560 Overloaded Moves . | . . . Propulsion Burnouts . | . . . Robots Hopped . | . . . Cave-ins Triggered . | . . . Exploration Rate (%) 14 | 2 31 11 Regions Visited 2 Branch Regions . Pre-discovered Areas . | . . . Known Exits Taken . | . . . Unknown Exits Taken 2 | 1 1 . Scrap Searched . | . . . Spaces Dug . | . . . Terrain Destroyed 75 | . 75 . Melee . | . . . Projectile . | . . . AOE 75 | . 75 . Terrain Rammed . | . . . Walls Destroyed . | . . . Machines Disabled . | . . . Actions | -11 -10 -9 --------- Run | Scr Mat Mat Total 422 | 5 238 179 Wait 3 | . 3 . Move 324 | 5 193 126 Hop . | . . . Pick Up 8 | . 7 1 Fast Attach 5 | . 3 2 Attach 5 | . . 5 Detach 2 | . 1 1 Swap 5 | . 5 . Drop 6 | . 6 . Fire 64 | . 20 44 Melee . | . . . Ram . | . . . Kick . | . . . Crush . | . . . Escape Stasis . | . . . Rewire . | . . . Trap . | . . . Miscellaneous . | . . . Route ------- -11/Scrapyard -10/Materials -9/Materials History --------- Turn | Location | Event 1 | -11/Scrapyard | Discovered new exit (range 3) 7 | -11/Scrapyard | Entered Materials 313 | -10/Materials | Build established: Mutant 369 | -10/Materials | Discovered new exit (range 8) 646 | -10/Materials | Entered another Materials area 646 | -9/Materials | Evolved 2 slots: Propulsion x2 1148 | -9/Materials | Self-destructed Last Messages --------------- 00789_ S-10 Pest destroyed. 00789_ Lgt. Treads destroyed. 00793_ S-10 Pest destroyed. 00805_ Acquired 17 matter. 00811_ Acquired 15 matter. 00839_ Acquired Hvy. Assault Rifle. 00872_ Acquired Aluminum Leg. 00938_ Acquired Lgt. Treads. 01051_ Connecting with Scanalyzer... 01051_ Current location identified: Materials >>Force(Extract) EXTRACTED[Mining Laser] EXTRACTED[Visual Processing Unit] EXTRACTED[Tractor Beam] EXTRACTED[Signal Interpreter] EXTRACTED[Particle Cannon] EXTRACTED[Mni. Grenade Launcher] EXTRACTED[Terrain Scan Processor] 01051_ ALERT: Suspicious activity at Scanalyzer M002. Dispatching Investigation squad. Map ----- +----------------------------------------------------+ | ??????????###########+#########?????????? | | ??????????# ?????????? | | ??????????# ?????????? | | ??????????# ?????????? | | ??????????######[%###+####??????????????? | | ???????????????# *#?????????????????????? | | ???????????????#%=#?????????????????????? | | ???????????????#= #?????????????????????? | | ???????????????# #?????????????????????? | | ???????????#???# #?????????????????????? | | ?????????? ??# #?????????????????????? | | ??????????"""??# =#?????????????????????? | | ??????????""""?# %#?????????????????????? | | ?????????"""""?#**#?????????????????????? | | ????????"""""" #[=#?????????????????????? | | ?????# """"""" # %#?????????????????????? | | ?????# +g #?????????????????????? | | ?????# = # g############??????????? | | ?????###########k ## #??????????? | | ??????????????# #[* #??????????? | | ??????????????# # =% #??????????? | | ??????????????# T += #??????????? | | ??????????????# # """" #??????????? | | ??????????????## ## """" #??????????? | | ???????????????# ## """" #??????????? | | ???????????????#@ ## #??????????? | | ???????????????# ############??????????? | | ??????########## # #????????????? | | ??????# # # """ #????????????? | | ??????# """" # + """ #????????????? | | ??????# """" # # """ #????????????? | | ??????# """" # # #????????????? | | ??????# # # """ #????????????? | | ??????# """" # # """ #????????????? | | ??????# """" # # """ #????????????? | | ??????#/ """" + + #????????????? | | ??????# # ##########????????????? | | ??????########## #?????????????????????? | | ????????????# #?????????????????????? | | ????????????# #?????????????????????? | | ????????????###+####????????????????????? | | ????????????# #????????????????????? | | ????????????# #????????????????????? | | ????????????# #????????????????????? | | ????????????# "" #????????????????????? | | ????????????# S"" #????????????????????? | | ????????????# "" #????????????????????? | | ????????????########????????????????????? | | ????????????????????????????????????????? | | ????????????????????????????????????????? | +----------------------------------------------------+ Best States ------------- Heat Dissipation 28 Energy Generation 10 Energy Capacity 250 Matter Stores 288 Matter Capacity 300 Sight Range 16 Terrain Scan Density 10 Evasion (%) 45 Recoil Reduction 2 Item Schematics ----------------- Mining Laser | -9/Materials | Extracted Visual Processing Unit | -9/Materials | Extracted Tractor Beam | -9/Materials | Extracted Signal Interpreter | -9/Materials | Extracted Particle Cannon | -9/Materials | Extracted Mni. Grenade Launcher | -9/Materials | Extracted Terrain Scan Processor | -9/Materials | Extracted Robot Schematics ------------------ None Fabricated ------------ Nothing Alien Tech Used ----------------- None Achievements -------------- None Challenges ------------ None Game ------ Seed GodActiveClaws Manual? 0 Play Time 00:07:43 Cumulative 342.3 hours Start 2021.10.05 @ 14:43:44 End 2021.10.05 @ 14:52:39 Sessions 1 Manual Loads 0 Difficulty Rogue Special Mode None Game No. 236 Rogue 65 Adventurer 61 Explorer 110 Win Type - Total 19 Types 17/0/1/0/0/0/0/1/0 Lore% 61 Gallery% 83 Achievement% 65 Wizard Run 0 Options --------- ASCII 0 Keyboard 1 Movement Numpad Keybinds 0 Fullscreen 2 Font 18/X11 Map View 76x50 Tactical HUD 1 Map Filters NONE Filters NONE Steam 1 RUN: 27b95115-11f3-45fc-aca4-01e7d768eff8